fUST/lending_fUST_20260110
["ID","MTS","AMOUNT","RATE_DAILY","PERIOD"]
[401168008,1768009832061,-152.05946234,0.00027397,5]
[401168009,1768009832070,-178.0,0.00027788,2]
[401168010,1768009832080,-1041.66666667,0.00029619,2]
[401168011,1768009832089,-4725.95710221,0.00029619,2]
[401168012,1768009832101,-45274.04289779,0.00029619,2]
[401168014,1768009832111,-179.23559869,0.00030136,10]
[401168016,1768009832120,-500.0,0.00030252,2]
[401168018,1768009832130,-622.40026181,0.00030252,2]
[401168020,1768009832139,-500.0,0.00030252,2]
[401168022,1768009832148,-500.0,0.00030252,2]
[401168024,1768009832158,-18.6548591,0.00030252,2]
[401168026,1768009832169,-481.3451409,0.00030252,2]
[401168028,1768009832179,-156.38045461,0.00030252,2]
[401168051,1768009836443,153.24451864,0.00030136,120]
[401168057,1768009838136,-177.0,0.00015698,2]
[401168058,1768009838146,-343.61954539,0.00030252,2]
[401168059,1768009838157,-500.0,0.00030252,2]
[401168060,1768009838167,-500.0,0.00030252,2]
[401168061,1768009838178,-500.0,0.00030252,2]
[401168062,1768009838187,-198.18949768,0.00030252,2]
[401168063,1768009838198,-495.6245815,0.00030252,2]
[401168064,1768009838210,-4.3754185,0.00030252,2]
[401168065,1768009838221,-500.0,0.00030252,2]
[401168066,1768009838233,-324.66188547,0.00030252,2]
[401168067,1768009838245,-175.33811453,0.00030252,2]
[401168068,1768009838255,-500.0,0.00030252,2]
[401168069,1768009838264,-156.79108866,0.00030252,2]
[401168070,1768009838277,-343.20891134,0.00030252,2]
[401168071,1768009838287,-500.0,0.00030252,2]
[401168072,1768009838296,-351.03929666,0.00030252,2]
[401168073,1768009838309,-148.96070334,0.00030252,2]
[401168074,1768009838318,-142.33945166,0.00030252,2]
[401168484,1768009844186,-357.66054834,0.00030252,2]
[401168487,1768009844196,-500.0,0.00030252,2]
[401168489,1768009844205,-500.0,0.00030252,2]
[401168491,1768009844215,-500.0,0.00030252,2]
[401168493,1768009844228,-500.0,0.00030252,2]
[401168495,1768009844238,-500.0,0.00030252,2]
[401168497,1768009844248,-500.0,0.00030252,2]
[401168499,1768009844259,-500.0,0.00030252,2]
[401168501,1768009844269,-500.0,0.00030252,2]
[401168503,1768009844280,-500.0,0.00030252,2]
[401168505,1768009844289,-500.0,0.00030252,2]
[401168507,1768009844301,-500.0,0.00030252,2]
[401168509,1768009844312,-500.0,0.00030252,2]
[401168511,1768009844322,-500.0,0.00030252,2]
[401168513,1768009844332,-500.0,0.00030252,2]
[401168516,1768009844343,-500.0,0.00030252,2]
[401168518,1768009844352,-500.0,0.00030252,2]
[401168520,1768009844362,-500.0,0.00030252,2]
[401168522,1768009844372,-500.0,0.00030252,2]
[401168524,1768009844382,-500.0,0.00030252,2]
[401168526,1768009844393,-500.0,0.00030252,2]
[401168528,1768009844404,-500.0,0.00030252,2]
[401168530,1768009844416,-500.0,0.00030252,2]
[401168532,1768009844426,-500.0,0.00030252,2]
[401168534,1768009844437,-300.0,0.00030252,2]
[401168536,1768009844447,-500.0,0.00030253,120]
[401168538,1768009844457,-318.85071196,0.00030253,120]
[401168540,1768009844466,-1137.0,0.0003059,30]
[401168543,1768009844476,-5406.0,0.0003059,30]
[401168545,1768009844487,-178.0,0.00030788,2]
[401168547,1768009844496,-156.5,0.0003092,30]
[401168549,1768009844506,-1690.27182898,0.00032352,2]
[401168551,1768009844516,-152.0,0.0003279,7]
[401168553,1768009844526,-152.0,0.0003279,7]
[401168555,1768009844537,-152.0,0.0003279,7]
[401168557,1768009844546,-152.0,0.0003279,7]
[401168559,1768009844556,-152.0,0.0003279,7]
[401168561,1768009844566,-152.0,0.0003279,7]
[401168563,1768009844575,-152.0,0.0003279,7]
[401168565,1768009844585,-152.0,0.0003279,7]
[401168567,1768009844594,-152.0,0.0003279,7]
[401168569,1768009844604,-152.0,0.0003279,7]
[401168571,1768009844614,-152.0,0.0003279,7]
[401168573,1768009844624,-152.0,0.0003279,7]
[401168575,1768009844633,-152.0,0.0003279,7]
[401168577,1768009844643,-152.0,0.0003279,7]
[401168579,1768009844653,-152.0,0.0003279,7]
[401168581,1768009844663,-152.0,0.0003279,7]
[401168583,1768009844676,-152.0,0.0003279,7]
[401168585,1768009844686,-152.0,0.0003279,7]
[401168587,1768009844696,-152.0,0.0003279,7]
[401168590,1768009844706,-152.0,0.0003279,7]
[401168592,1768009844715,-152.0,0.0003279,7]
[401168594,1768009844726,-152.0,0.0003279,7]
[401168596,1768009844735,-152.0,0.0003279,7]
[401168598,1768009844745,-152.0,0.0003279,7]
[401168600,1768009844755,-152.0,0.0003279,7]
[401168602,1768009844765,-152.0,0.0003279,7]
[401168604,1768009844776,-152.0,0.0003279,7]
[401168606,1768009844787,-152.0,0.0003279,7]
[401168608,1768009844797,-152.0,0.0003279,7]
[401168610,1768009844806,-152.0,0.0003279,7]
[401168612,1768009844818,-152.0,0.0003279,7]
[401168614,1768009844827,-152.0,0.0003279,7]
[401168616,1768009844837,-152.0,0.0003279,7]
[401168618,1768009844847,-152.0,0.0003279,7]
[401168620,1768009844856,-152.0,0.0003279,7]
[401168622,1768009844868,-152.0,0.0003279,7]
[401168624,1768009844877,-152.0,0.0003279,7]
[401168627,1768009844887,-152.0,0.0003279,7]
[401168631,1768009844897,-152.0,0.0003279,7]
[401168634,1768009844907,-262.14192212,0.0003279,7]
[401168637,1768009844916,-152.0,0.0003279,7]
[401168640,1768009844926,-152.0,0.0003279,7]
[401168642,1768009844935,-152.0,0.0003279,7]
[401168644,1768009844945,-152.0,0.0003279,7]
[401168646,1768009844955,-152.0,0.0003279,7]
[401168648,1768009844964,-240.0,0.0003279,7]
[401168650,1768009844974,-150.51060424,0.00032877,5]
[401168652,1768009844984,-157.05438515,0.00032889,120]
[401168654,1768009844994,-2088.91891678,0.000332,117]
[401168656,1768009845003,-2088.91891677,0.000332,117]
[401168658,1768009845013,-1333.2471,0.0003322,30]
[401168660,1768009845023,-2088.91891677,0.00033255,117]
[401168662,1768009845033,-178.0,0.00033788,2]
[401168664,1768009845043,-168.0,0.00034557,2]
[401168666,1768009845052,-157.822,0.00034582,39]
[401168668,1768009845062,-168.0,0.00034634,2]
[401168670,1768009845072,-242.84,0.000347,30]
[401168672,1768009845082,-221.76,0.000348,30]
[401168675,1768009845092,-2088.91891677,0.00034865,120]
[401168677,1768009845102,-356.98550418,0.0003492,2]
[401168679,1768009845112,-155.04154719,0.00035797,120]
[401168681,1768009845122,-164.98394658,0.00035797,120]
[401168683,1768009845132,-273.58951094,0.00035797,120]
[401168685,1768009845141,-500.0,0.00035797,120]
[401168687,1768009845151,-243.97488543,0.00035797,120]
[401168689,1768009845160,-303.65246544,0.00035797,120]
[401168691,1768009845170,-213.62630209,0.00035797,120]
[401168693,1768009845180,-174.50574161,0.00035798,120]
[401168695,1768009845189,-606.23870766,0.00035798,120]
[401168697,1768009845199,-393.59148868,0.00035798,120]
[401168699,1768009845209,-301.34853197,0.00035798,120]
[401168701,1768009845219,-193.31277089,0.00035798,120]
[401168703,1768009845233,-168.29605967,0.00035798,120]
[401168705,1768009845243,-3000.0,0.000358,120]
[401168707,1768009845252,-151.40833743,0.00035888,60]
[401168709,1768009845262,-1035.0,0.00036,2]
[401168712,1768009845274,-159.49904564,0.00036016,10]
[401168714,1768009845283,-150.34339584,0.00036016,10]
[401168716,1768009845296,-153.94242131,0.00036016,10]
[401168718,1768009845306,-191.67991692,0.00036025,60]
[401168720,1768009845316,-202.16,0.00036028,10]
[401168722,1768009845326,-402.97,0.00036028,10]
[401168724,1768009845336,-79503.31029093,0.00036038,4]
[401168726,1768009845346,-999.0,0.00036085,120]
[401168728,1768009845357,-500.0,0.00036126,13]
[401168730,1768009845366,-500.0,0.00036137,15]
[401168751,1768009845542,-500.0,0.00036137,15]
[401168754,1768009845552,-500.0,0.00036137,15]
[401168756,1768009845561,-500.0,0.00036137,15]
[401168758,1768009845571,-500.0,0.00036137,15]
[401168760,1768009845581,-391.65531188,0.00036137,15]
[401168762,1768009845591,-135746.31324525,0.00036138,2]
[401168825,1768009846174,-928.68864499,0.0003092,30]
[401169294,1768009857545,3785.69268035,0.0003013,120]
[401169295,1768010010891,248.86750617,0.00030136,120]
[401169296,1768010240842,279.22,0.00030136,120]
[401169302,1768010485901,199.81,0.00030137,120]
[401169303,1768010567407,464.44,0.00030137,120]
[401169307,1768011032090,-158.21910894,0.00012327,2]
[401169308,1768011032101,-180.233253,0.00021,2]
[401169309,1768011032111,-27.21846455,0.00021355,2]
[401169310,1768011032141,-151.28580317,0.00021355,2]
[401169311,1768011032151,-158.21910894,0.00022327,31]
[401169312,1768011032161,-324.09428419,0.00023844,2]
[401169313,1768011032171,-150.083,0.00025123,2]
[401169314,1768011032180,-150.081,0.00025123,2]
[401169315,1768011032189,-178.0,0.00025123,2]
[401169316,1768011032199,-324.09428419,0.00025209,56]
[401169317,1768011032208,-324.09428419,0.00026575,110]
[401169318,1768011032219,-1200.0,0.00028122,2]
[401169319,1768011032228,-178.0,0.00028123,2]
[401169320,1768011032238,-165.66824518,0.00029,2]
[401169321,1768011032248,-1051.0,0.0003092,30]
[401169322,1768011032257,-5181.0,0.0003092,30]
[401169323,1768011032266,-323.0,0.00031,2]
[401169324,1768011032276,-393.0,0.0003112,2]
[401169325,1768011032285,-301.0,0.00031121,3]
[401169326,1768011032294,-178.0,0.00031123,2]
[401169327,1768011032303,-1000.0,0.00031432,30]
[401169328,1768011032313,-158.21910894,0.00032327,60]
[401169329,1768011032322,-168.0,0.00033169,2]
[401169330,1768011032331,-178.0,0.00034123,2]
[401169331,1768011032341,-168.0,0.00034864,2]
[401169332,1768011032351,-169.0,0.00035,120]
[401169333,1768011032360,-237.99033612,0.00035054,2]
[401169334,1768011032369,-168.0,0.0003538,2]
[401169335,1768011032378,-384.3343363,0.00035616,30]
[401169336,1768011032387,-157.82309784,0.00035999,43]
[401169337,1768011032397,-253.18074612,0.00035999,30]
[401169338,1768011032407,-335.8,0.00036027,10]
[401169339,1768011032417,-500.0,0.00036036,15]
[401169340,1768011032426,-500.0,0.00036036,15]
[401169341,1768011032435,-500.0,0.00036036,15]
[401169342,1768011032445,-524.15871831,0.00036036,15]
[401169343,1768011032455,-500.0,0.00036036,15]
[401169344,1768011032465,-199.81894977,0.00036036,15]
[401169345,1768011032475,-500.0,0.00036036,15]
[401169346,1768011032485,-500.0,0.00036036,15]
[401169347,1768011032494,-500.0,0.00036036,15]
[401169348,1768011032504,-999.0,0.00036036,120]
[401169349,1768011032513,-16160.5199804,0.00036037,2]
[401169350,1768011032526,-7397.63791508,0.00036037,2]
[401169844,1768011044960,-279.84,0.00036027,10]
[401169846,1768011044970,-1002.0,0.00036036,30]
[401169848,1768011044980,-4749.0,0.00036036,30]
[401169850,1768011044990,-4058.27315855,0.00036037,2]
[401169982,1768011046188,-7292.64906362,0.00036037,2]
[401170524,1768012207039,151.75,0.00030137,120]
[401170562,1768012232352,-334.00439761,0.00017,2]
[401170564,1768012232361,-467.87904071,0.00017,2]
[401170569,1768012232415,-201.12095929,0.00017,2]
[401170571,1768012232425,-244.42432775,0.00017999,2]
[401170573,1768012232436,-978.106494,0.00018,5]
[401170576,1768012232447,-566.67555673,0.00018,5]
[401170578,1768012232458,-8002.80095218,0.00018,5]
[401170580,1768012232471,-8631.26403277,0.00018,5]
[401170624,1768012238478,-28247.39014099,0.00018,5]
[401170626,1768012238490,-26604.45864987,0.00018,5]
[401170628,1768012238500,-2528.53397649,0.00019104,2]
[401170630,1768012238510,-2623.37024467,0.00019205,5]
[401170632,1768012238520,-10000.0,0.00021,5]
[401170634,1768012238530,-2528.53397647,0.00021591,2]
[401170636,1768012238539,-2528.53397647,0.00024078,2]
[401170639,1768012238560,-2528.53397647,0.00026565,2]
[401170642,1768012238574,-164.31221406,0.000269,5]
[401170644,1768012238585,-163.5,0.000274,7]
[401170646,1768012238596,-2528.53397647,0.00029052,2]
[401170648,1768012238606,-194.33,0.0003098,10]
[401170650,1768012238616,-233.2,0.0003099,10]
[401170652,1768012238626,-1110.24987202,0.00031,120]
[401170654,1768012238636,-1004.0,0.00031197,30]
[401170656,1768012238646,-261.43330199,0.00031197,30]
[401170659,1768012238666,-364.43491989,0.00031197,30]
[401170661,1768012238679,-822.42279838,0.00031197,30]
[401170663,1768012238692,-1107.56081372,0.00031197,30]
[401170666,1768012238708,-1049.11911392,0.00031197,30]
[401170668,1768012238720,-890.15205145,0.00031197,30]
[401170670,1768012238733,-271.87700065,0.00031197,30]
[401170672,1768012238743,-9.12777976,0.00031539,2]
[401170674,1768012238755,-2519.40619671,0.00031539,2]
[401170675,1768012238765,-308.59826684,0.00033,120]
[401170678,1768012238809,-338.84055212,0.00033,120]
[401170679,1768012240551,-920.0,0.00031539,30]
[401170680,1768012240562,-2255.8627938,0.00031539,30]
[401170681,1768012240632,-2114.1372062,0.00031539,30]
[401170682,1768012240642,-2239.14738953,0.00033,120]
[401170683,1768012240651,-2528.53397647,0.00034026,2]
[401170684,1768012240660,-158.66022408,0.00035054,2]
[401170685,1768012240671,-163.5,0.000353,120]
[401170686,1768012240681,-1246.323698,0.0003586,10]
[401170688,1768012240692,-1000.0,0.0003588,10]
[401170689,1768012240702,-150.84799026,0.00035899,2]
[401170690,1768012240712,-1000.0,0.000359,10]
[401170691,1768012240722,-5036.01566684,0.000359,30]
[401170692,1768012240732,-1000.0,0.0003592,10]
[401170693,1768012240743,-161.94,0.00035927,10]
[401170695,1768012240752,-960.35,0.00035935,30]
[401170697,1768012240762,-500.0,0.00035936,15]
[401170699,1768012240772,-416.91110282,0.00035936,15]
[401170701,1768012240783,-500.0,0.00035936,15]
[401170702,1768012240793,-999.0,0.00035936,120]
[401170705,1768012240808,-960.35,0.00035936,30]
[401170706,1768012240820,-960.35,0.00035936,30]
[401170708,1768012240829,-960.35,0.00035936,30]
[401170710,1768012240839,-960.35,0.00035936,30]
[401170711,1768012240850,-960.35,0.00035936,30]
[401170713,1768012240861,-960.35,0.00035936,30]
[401170715,1768012240871,-960.35,0.00035936,30]
[401170717,1768012240880,-960.35,0.00035936,30]
[401170718,1768012240890,-960.35,0.00035936,30]
[401170720,1768012240900,-960.35,0.00035936,30]
[401170722,1768012240910,-960.35,0.00035936,30]
[401170724,1768012240921,-960.35,0.00035936,30]
[401170726,1768012240931,-960.35,0.00035936,30]
[401170728,1768012240941,-960.35,0.00035936,30]
[401170729,1768012240951,-960.35,0.00035936,30]
[401170731,1768012240961,-960.35,0.00035936,30]
[401170733,1768012240971,-960.35,0.00035936,30]
[401170735,1768012240982,-960.35,0.00035936,30]
[401170737,1768012240993,-960.35,0.00035936,30]
[401170739,1768012241003,-960.35,0.00035936,30]
[401170740,1768012241013,-960.35,0.00035936,30]
[401170742,1768012241024,-960.35,0.00035936,30]
[401170744,1768012241034,-960.4383287,0.00035936,30]
[401170746,1768012241045,-500.0,0.00035936,2]
[401170748,1768012241056,-500.0,0.00035936,2]
[401170750,1768012241068,-500.0,0.00035936,2]
[401170752,1768012241078,-500.0,0.00035936,2]
[401170753,1768012241087,-500.0,0.00035936,2]
[401170755,1768012241099,-170.68633163,0.00035936,2]
[401170757,1768012241108,-75387.77942186,0.00035937,2]
[401171013,1768012244095,1000.0,0.00030137,120]
[401171091,1768012244827,-4205.0,0.00035936,30]
[401171093,1768012244837,-886.0,0.00035936,30]
[401171095,1768012244847,-367882.54336564,0.00035937,2]
[401171230,1768012246369,-877.36941294,0.00035937,2]
[401171237,1768012246426,-3202.659268,0.00035937,2]
[401171925,1768012360433,188.0,0.00030137,120]
[401171931,1768013432560,-241.671302,0.00025534,17]
[401171932,1768013432570,-268.15820755,0.00030137,30]
[401172010,1768013438626,-81.84179245,0.00030137,30]
[401172012,1768013438637,-887.0,0.00031197,30]
[401172014,1768013438647,-3646.09727385,0.00031197,30]
[401172016,1768013438660,-564.90272615,0.00031197,30]
[401172019,1768013438671,-1000.0,0.00032768,30]
[401172021,1768013438681,-210.0,0.00033699,5]
[401172023,1768013438691,-96.405378,0.00034521,5]
[401173117,1768014007431,155.0,0.0001,2]
[401173120,1768014515836,158.21910892,0.00011465,2]
[401173121,1768014544536,158.21910894,0.00011465,2]
[401173149,1768014631698,-150.023,0.00028337,2]
[401173151,1768014631708,-150.019,0.00028337,2]
[401173153,1768014631718,-923.74322574,0.00030884,30]
[401173363,1768014637956,-449.57369441,0.00030884,30]
[401173365,1768014637969,-400.42630559,0.00030884,30]
[401173366,1768014637979,-1249.00076733,0.00030884,30]
[401173367,1768014638005,-2579.99923267,0.00030884,30]
[401173368,1768014638015,-200.0,0.00032,120]
[401173369,1768014638025,-706.38,0.000326,120]
[401173370,1768014638036,-210.0,0.00033699,5]
[401173371,1768014638046,-237.1585295,0.000338,5]
[401173372,1768014638057,-168.32106538,0.00034,120]
[401173373,1768014638067,-333.694632,0.00034521,5]
[401173374,1768014638078,-151.0,0.00034521,7]
[401173375,1768014638088,-151.0,0.00034521,7]
[401173376,1768014638098,-151.0,0.00034521,7]
[401173377,1768014638108,-300.72492516,0.00034521,7]
[401173378,1768014638117,-158.66022408,0.00035054,2]
[401173379,1768014638128,-417.78378337,0.00035571,120]
[401173380,1768014638138,-304.95,0.00035671,30]
[401173381,1768014638148,-21830.07118484,0.000357,30]
[401173415,1768014640104,-620.84213831,0.000357,30]
[401173626,1768014644202,-998.76631547,0.000357,30]
[401173633,1768014645970,-1843.31368453,0.000357,30]
[401173634,1768014806607,1023.0,0.00030137,120]
[401173635,1768014939637,197.41,0.00015495,2]
[401173636,1768014940044,263.22,0.00016687,2]
[401173637,1768014940448,329.02,0.00017879,2]
[401173638,1768014963065,875.49,0.00030137,120]
[401173639,1768015012320,167.26,0.00010744,2]
[401173640,1768015012736,223.02,0.00011571,2]
[401173641,1768015013211,278.77,0.00012397,2]
[401173642,1768015013545,334.52,0.00013224,2]
[401173643,1768015013940,390.28,0.0001405,2]
[401173644,1768015014357,446.03,0.00014877,2]
[401173645,1768015014813,501.78,0.00015703,2]
[401173646,1768015015240,557.54,0.0001653,2]
[401173648,1768015388482,151.80961465,0.00027839,120]
[401173650,1768015435189,786.94,0.00030137,120]
[401173655,1768015696062,2360.0,0.00030137,120]
[401173659,1768015716444,531.63224306,0.00015,3]
[401173660,1768015828691,168.77,7.568e-05,2]
[401173661,1768015829218,337.55,8.256e-05,2]
[401173662,1768015829619,506.32,8.944e-05,2]
[401173663,1768015830101,675.1,9.632e-05,2]
[401173664,1768015830510,843.87,0.0001032,2]
[401173665,1768015830954,1012.65,0.00011008,2]
[401173666,1768015831349,1181.42,0.00011696,2]
[401173686,1768015831924,582.39953908,0.00012384,2]
[401173689,1768015831955,767.80046092,0.00012384,2]
[401173690,1768015832183,1518.97,0.00013072,2]
[401173698,1768015832615,1687.75,0.0001376,2]
[401174091,1768015844231,-402.2134921,0.00025,20]
[401174093,1768015844243,-5000.0,0.00025625,2]
[401174096,1768015844254,-151.80961466,0.00026396,2]
[401174098,1768015844264,-150.64841803,0.00027397,5]
[401174100,1768015844273,-151.80961466,0.00027508,56]
[401174102,1768015844284,-5000.0,0.00029958,2]
[401174104,1768015844294,-7353.58059892,0.0003,30]
[401174551,1768015901528,151.9,9.289e-05,2]
[401174552,1768015901942,202.53,0.00010003,2]
[401174553,1768015902890,253.16,0.00010718,2]
[401174554,1768015903248,303.8,0.00011432,2]
[401174555,1768015903662,354.43,0.00012147,2]
[401174556,1768015904094,405.06,0.00012861,2]
[401174557,1768015904483,455.69,0.00013576,2]
[401174558,1768015904893,506.33,0.0001429,2]
[401174559,1768016113174,202.33,0.00012127,2]
[401174560,1768016113445,404.67,0.0001323,2]
[401174561,1768016113863,607.0,0.00014332,2]
[401174562,1768016114253,809.34,0.00015435,2]
[401174563,1768016114678,1011.67,0.00016537,2]
[401174564,1768016187838,163.71,0.00012341,2]
[401174565,1768016188257,193.85953908,0.00013463,2]
[401174566,1768016188285,133.55046092,0.00013463,2]
[401174567,1768016188654,491.12,0.00014584,2]
[401174568,1768016189107,654.83,0.00015706,2]
[401174569,1768016266990,285.74,8.37e-05,2]
[401174570,1768016267423,428.61,9.067e-05,2]
[401174571,1768016267831,571.49,9.765e-05,2]
[401174572,1768016268229,714.36,0.00010462,2]
[401174573,1768016268712,857.23,0.0001116,2]
[401174574,1768016269040,1000.1,0.00011857,2]
[401174575,1768016269446,1142.97,0.00012555,2]
[401174576,1768016269845,1285.84,0.00013252,2]
[401174577,1768016270258,1428.71,0.0001395,2]
[401174579,1768016343575,178.72,0.00013147,2]
[401174580,1768016344057,223.4,0.00014086,2]
[401174581,1768016344635,268.08,0.00015025,2]
[401174582,1768016345031,312.76,0.00015965,2]
[401174583,1768016402321,22.48953908,5e-05,2]
[401174584,1768016402349,580.08046092,5e-05,2]
[401174585,1768016402615,602.57,5.1e-05,2]
[401174586,1768016402905,602.57,5.2e-05,2]
[401174587,1768016403179,602.57,5.2e-05,2]
[401174588,1768016403471,602.57,5.3e-05,2]
[401174589,1768016403764,602.57,5.4e-05,2]
[401174590,1768016404062,602.57,5.5e-05,2]
[401174591,1768016404355,602.57,5.6e-05,2]
[401174592,1768016404637,602.57,5.7e-05,2]
[401174593,1768016404964,602.57,5.7e-05,2]
[401174594,1768016405301,602.57,5.8e-05,2]
[401174595,1768016405590,602.57,5.9e-05,2]
[401174596,1768016405926,602.57,6e-05,2]
[401174597,1768016406271,602.57,6.1e-05,2]
[401174598,1768016406560,602.57,6.2e-05,2]
[401174599,1768016406890,602.57,6.2e-05,2]
[401174600,1768016407201,381.36953908,6.3e-05,2]
[401174601,1768016407230,221.20046092,6.3e-05,2]
[401174602,1768016407523,602.57,6.4e-05,2]
[401174603,1768016407858,602.57,6.5e-05,2]
[401174604,1768016408204,602.57,6.6e-05,2]
[401174605,1768016408577,602.57,6.6e-05,2]
[401174606,1768016408920,602.57,6.7e-05,2]
[401174607,1768016409145,602.57,6.8e-05,2]
[401174608,1768016409424,602.57,6.9e-05,2]
[401174609,1768016410331,602.57,7e-05,2]
[401174610,1768016410648,602.57,7.1e-05,2]
[401174611,1768016410939,602.57,7.1e-05,2]
[401174612,1768016411240,602.57,7.2e-05,2]
[401174613,1768016411521,602.57,7.3e-05,2]
[401174614,1768016411796,602.57,7.4e-05,2]
[401174615,1768016412099,602.57,7.5e-05,2]
[401174616,1768016412440,602.57,7.6e-05,2]
[401174617,1768016412721,602.57,7.6e-05,2]
[401174618,1768016413002,137.67953908,7.7e-05,2]
[401174619,1768016413033,464.89046092,7.7e-05,2]
[401174620,1768016413345,602.57,7.8e-05,2]
[401174621,1768016413614,602.57,7.9e-05,2]
[401174622,1768016413897,602.57,8e-05,2]
[401174623,1768016414204,602.57,8e-05,2]
[401174624,1768016414482,602.57,8.1e-05,2]
[401174625,1768016415447,602.57,8.2e-05,2]
[401174626,1768016415781,602.57,8.3e-05,2]
[401174627,1768016416059,602.57,8.4e-05,2]
[401174628,1768016416340,602.57,8.5e-05,2]
[401174629,1768016416619,602.57,8.5e-05,2]
[401174630,1768016416890,602.57,8.6e-05,2]
[401174631,1768016417214,602.57,8.7e-05,2]
[401174632,1768016417492,602.57,8.8e-05,2]
[401174633,1768016417763,602.57,8.9e-05,2]
[401174634,1768016418231,602.57,9e-05,2]
[401174635,1768016419170,496.55953908,5e-05,2]
[401174636,1768016419196,105.99046092,5e-05,2]
[401174657,1768017032021,-150.01531264,0.00019178,2]
[401174659,1768017032031,-457.4996875,0.00023,15]
[401174661,1768017032124,-447.84262039,0.00023,15]
[401174664,1768017032137,-5094.65769211,0.00023,15]
[401174666,1768017032148,-514.36146026,0.00029219,2]
[401174698,1768017038171,-1677.73591468,0.00029219,2]
[401174699,1768017038184,-2192.09737494,0.00029515,2]
[401174700,1768017038196,-2192.09737494,0.00029782,2]
[401174701,1768017038206,-1368.449,0.00029799,2]
[401174702,1768017038218,-629.047,0.00029799,2]
[401174703,1768017038227,-2148.594,0.00029799,2]
[401174704,1768017038242,-203.585,0.00029799,2]
[401174705,1768017038252,-429.361,0.00029799,2]
[401174706,1768017038263,-1010.0,0.000298,30]
[401174707,1768017038272,-500.0,0.00029999,2]
[401174708,1768017038282,-500.0,0.00029999,2]
[401174709,1768017038293,-12557.21215655,0.0003,30]
[401174710,1768017038304,-5825.42957261,0.0003,30]
[401174711,1768017038316,-16275.58110888,0.0003,30]
[401174712,1768017038327,-152.0,0.0003,7]
[401174713,1768017038336,-152.0,0.0003,7]
[401174714,1768017038345,-152.0,0.0003,7]
[401174715,1768017038356,-152.0,0.0003,7]
[401174716,1768017038366,-152.0,0.0003,7]
[401174717,1768017038376,-152.0,0.0003,7]
[401174718,1768017038386,-152.0,0.0003,7]
[401174719,1768017038396,-152.0,0.0003,7]
[401174720,1768017038406,-152.0,0.0003,7]
[401174721,1768017038415,-152.0,0.0003,7]
[401174722,1768017038425,-152.0,0.0003,7]
[401174723,1768017038435,-152.0,0.0003,7]
[401174724,1768017038446,-152.0,0.0003,7]
[401174725,1768017038456,-152.0,0.0003,7]
[401174726,1768017038466,-152.0,0.0003,7]
[401174727,1768017038475,-152.0,0.0003,7]
[401174728,1768017038485,-152.0,0.0003,7]
[401174729,1768017038495,-152.0,0.0003,7]
[401174730,1768017038505,-152.0,0.0003,7]
[401174731,1768017038515,-152.0,0.0003,7]
[401174732,1768017038525,-152.0,0.0003,7]
[401174733,1768017038535,-152.0,0.0003,7]
[401174734,1768017038544,-152.0,0.0003,7]